[Event "Live Chess"]
[Site "Chess.com"]
[Date "2024.06.02"]
[Round "-"]
[White "upoe610"]
[Black "nitrofish07"]
[Result "0-1"]
[WhiteElo "2120"]
[BlackElo "2073"]
[TimeControl "300"]
[EndTime "5:51:30 PDT"]
[Termination "nitrofish07 won by checkmate"]

1. c4 {[%clk 0:04:57.2]} 1... c6 {[%clk 0:04:59.1]} 2. g3 {[%clk 0:04:56.2]}
2... d5 {[%clk 0:04:58.9]} 3. Nf3 {[%clk 0:04:55.7]} 3... Nf6 {[%clk 0:04:58.5]}
4. Bg2 {[%clk 0:04:54.6]} 4... Bg4 {[%clk 0:04:58.2]} 5. Ne5 {[%clk 0:04:53.1]}
5... Bf5 {[%clk 0:04:53.4]} 6. Qb3 {[%clk 0:04:50]} 6... Qb6 {[%clk 0:04:52]} 7.
d3 {[%clk 0:04:46.8]} 7... e6 {[%clk 0:04:50.1]} 8. Be3 {[%clk 0:04:45.4]} 8...
Qxb3 {[%clk 0:04:48.9]} 9. axb3 {[%clk 0:04:44.4]} 9... Nbd7 {[%clk 0:04:47.7]}
10. Nxd7 {[%clk 0:04:42.8]} 10... Kxd7 {[%clk 0:04:46.2]} 11. Rxa7 {[%clk
0:04:40.8]} 11... Rxa7 {[%clk 0:04:45.2]} 12. Bxa7 {[%clk 0:04:40.7]} 12... Bb4+
{[%clk 0:04:44.7]} 13. Nc3 {[%clk 0:04:39]} 13... Ra8 {[%clk 0:04:44.1]} 14. Be3
{[%clk 0:04:31]} 14... Bh3 {[%clk 0:04:40.9]} 15. Bf3 {[%clk 0:04:28.7]} 15...
Bg4 {[%clk 0:04:33.9]} 16. Bg2 {[%clk 0:04:24.1]} 16... Bh3 {[%clk 0:04:31.4]}
17. O-O {[%clk 0:04:22.7]} 17... Bxg2 {[%clk 0:04:29.3]} 18. Kxg2 {[%clk
0:04:22.4]} 18... Bxc3 {[%clk 0:04:27.2]} 19. bxc3 {[%clk 0:04:21.5]} 19... Ra3
{[%clk 0:04:27.1]} 20. Rb1 {[%clk 0:04:19.8]} 20... Kd6 {[%clk 0:04:23.9]} 21.
Bc1 {[%clk 0:04:13.9]} 21... Ra2 {[%clk 0:04:20.9]} 22. Rb2 {[%clk 0:04:04]}
22... Rxb2 {[%clk 0:04:18.9]} 23. Bxb2 {[%clk 0:04:03.9]} 23... Nd7 {[%clk
0:04:18.3]} 24. Ba3+ {[%clk 0:04:02.8]} 24... c5 {[%clk 0:04:17.1]} 25. d4
{[%clk 0:04:02.1]} 25... dxc4 {[%clk 0:04:15]} 26. bxc4 {[%clk 0:04:00.8]} 26...
b6 {[%clk 0:04:14.9]} 27. Kf3 {[%clk 0:03:59.6]} 27... Kc6 {[%clk 0:04:11.4]}
28. Ke4 {[%clk 0:03:58]} 28... f6 {[%clk 0:04:09.9]} 29. d5+ {[%clk 0:03:55.7]}
29... exd5+ {[%clk 0:04:09.4]} 30. cxd5+ {[%clk 0:03:55.6]} 30... Kd6 {[%clk
0:04:09.3]} 31. c4 {[%clk 0:03:54.6]} 31... Ne5 {[%clk 0:04:05.6]} 32. Bc1
{[%clk 0:03:49.8]} 32... Nxc4 {[%clk 0:03:53.9]} 33. Bf4+ {[%clk 0:03:47.8]}
33... Ne5 {[%clk 0:03:52.5]} 34. h4 {[%clk 0:03:40.7]} 34... h6 {[%clk
0:03:49.6]} 35. h5 {[%clk 0:03:39.5]} 35... b5 {[%clk 0:03:45.3]} 36. g4 {[%clk
0:03:38.6]} 36... b4 {[%clk 0:03:38.5]} 37. Bc1 {[%clk 0:03:27.2]} 37... Nxg4
{[%clk 0:03:33.9]} 38. f4 {[%clk 0:03:22.7]} 38... b3 {[%clk 0:03:19.9]} 39. Bb2
{[%clk 0:03:21.5]} 39... Nf2+ {[%clk 0:03:15.6]} 40. Kf5 {[%clk 0:03:18.4]}
40... Nd1 {[%clk 0:03:13.6]} 41. Ba3 {[%clk 0:03:11.3]} 41... b2 {[%clk
0:03:09.2]} 42. Bxb2 {[%clk 0:03:09.8]} 42... Nxb2 {[%clk 0:03:09.1]} 43. e4
{[%clk 0:03:09.7]} 43... c4 {[%clk 0:03:07.7]} 44. Kg6 {[%clk 0:03:06.5]} 44...
c3 {[%clk 0:03:06.6]} 45. Kxg7 {[%clk 0:03:06.4]} 45... c2 {[%clk 0:03:05.7]}
46. Kxf6 {[%clk 0:03:06.3]} 46... c1=Q {[%clk 0:03:04.5]} 47. e5+ {[%clk
0:03:06.2]} 47... Kxd5 {[%clk 0:03:04]} 48. f5 {[%clk 0:03:04.5]} 48... Nd3
{[%clk 0:03:02]} 49. e6 {[%clk 0:03:02.8]} 49... Qg5+ {[%clk 0:03:01.3]} 50. Kf7
{[%clk 0:03:02.1]} 50... Qxf5+ {[%clk 0:03:00.6]} 51. Kg7 {[%clk 0:03:01]} 51...
Qxe6 {[%clk 0:02:58.1]} 52. Kh7 {[%clk 0:03:00.3]} 52... Nf4 {[%clk 0:02:55.4]}
53. Kh8 {[%clk 0:02:58.7]} 53... Nxh5 {[%clk 0:02:50.6]} 54. Kh7 {[%clk
0:02:57.7]} 54... Nf4 {[%clk 0:02:46.3]} 55. Kh8 {[%clk 0:02:55]} 55... Ng6+
{[%clk 0:02:45.3]} 56. Kh7 {[%clk 0:02:54.2]} 56... Qf7+ {[%clk 0:02:45]} 57.
Kxh6 {[%clk 0:02:53.4]} 57... Ne7 {[%clk 0:02:39.5]} 58. Kg5 {[%clk 0:02:52.3]}
58... Ke5 {[%clk 0:02:37.6]} 59. Kh4 {[%clk 0:02:51.6]} 59... Kf4 {[%clk
0:02:35.6]} 60. Kh3 {[%clk 0:02:50.8]} 60... Qg7 {[%clk 0:02:29.6]} 61. Kh2
{[%clk 0:02:49.8]} 61... Kf3 {[%clk 0:02:28.8]} 62. Kh1 {[%clk 0:02:49.1]} 62...
Qg2# {[%clk 0:02:27.7]} 0-1

[Event "Live Chess"]
[Site "Chess.com"]
[Date "2024.06.02"]
[Round "-"]
[White "imchessive"]
[Black "TC2304"]
[Result "0-1"]
[WhiteElo "1592"]
[BlackElo "2338"]
[TimeControl "300"]
[EndTime "5:51:42 PDT"]
[Termination "TC2304 won by checkmate"]

1. d4 {[%clk 0:04:58.7]} 1... Nf6 {[%clk 0:04:56.3]} 2. c4 {[%clk 0:04:57.8]}
2... e6 {[%clk 0:04:51.8]} 3. Nf3 {[%clk 0:04:56.9]} 3... d5 {[%clk 0:04:50.8]}
4. g3 {[%clk 0:04:55.7]} 4... c6 {[%clk 0:04:44.6]} 5. Bg2 {[%clk 0:04:52.7]}
5... dxc4 {[%clk 0:04:42.1]} 6. Ne5 {[%clk 0:04:51.5]} 6... Nbd7 {[%clk
0:04:40.5]} 7. Nxc4 {[%clk 0:04:50.6]} 7... Be7 {[%clk 0:04:37.3]} 8. Nc3 {[%clk
0:04:48.6]} 8... O-O {[%clk 0:04:36.6]} 9. e4 {[%clk 0:04:45.6]} 9... Nb6 {[%clk
0:04:30.6]} 10. Ne5 {[%clk 0:04:24.8]} 10... c5 {[%clk 0:04:25.7]} 11. d5 {[%clk
0:04:19.2]} 11... exd5 {[%clk 0:04:22.7]} 12. exd5 {[%clk 0:04:19.1]} 12... Bd6
{[%clk 0:04:21.7]} 13. Nd3 {[%clk 0:03:45.3]} 13... Re8+ {[%clk 0:04:19.9]} 14.
Be3 {[%clk 0:03:42.4]} 14... Nc4 {[%clk 0:04:16.9]} 15. O-O {[%clk 0:03:31.5]}
15... Nxe3 {[%clk 0:04:04.6]} 16. fxe3 {[%clk 0:03:31.4]} 16... Rxe3 {[%clk
0:04:04.1]} 17. Rc1 {[%clk 0:03:12.6]} 17... Bg4 {[%clk 0:03:53.1]} 18. Qd2
{[%clk 0:03:07]} 18... Re8 {[%clk 0:03:25.5]} 19. Nb5 {[%clk 0:03:02.5]} 19...
Rc8 {[%clk 0:03:18.7]} 20. Nxa7 {[%clk 0:02:56.4]} 20... Ra8 {[%clk 0:03:18]}
21. Nb5 {[%clk 0:02:53]} 21... Rxa2 {[%clk 0:03:17.4]} 22. Nxd6 {[%clk
0:02:47.9]} 22... Qxd6 {[%clk 0:03:17.3]} 23. Nxc5 {[%clk 0:02:33.9]} 23... Re2
{[%clk 0:03:15.2]} 24. Qg5 {[%clk 0:02:10.5]} 24... Raxb2 {[%clk 0:03:08.3]} 25.
Bf3 {[%clk 0:01:48.6]} 25... Rxh2 {[%clk 0:03:03.9]} 26. Rfe1 {[%clk 0:01:22.6]}
26... Qxg3+ {[%clk 0:03:01.6]} 27. Kf1 {[%clk 0:01:09.7]} 27... Qf2# {[%clk
0:02:52.6]} 0-1

[Event "Live Chess"]
[Site "Chess.com"]
[Date "2024.06.02"]
[Round "-"]
[White "Grace6363"]
[Black "alicechristina"]
[Result "0-1"]
[WhiteElo "1134"]
[BlackElo "1947"]
[TimeControl "300"]
[EndTime "5:51:56 PDT"]
[Termination "alicechristina won by resignation"]

1. d4 {[%clk 0:04:57.6]} 1... d5 {[%clk 0:04:53]} 2. c4 {[%clk 0:04:55.8]} 2...
e6 {[%clk 0:04:51.9]} 3. Nf3 {[%clk 0:04:54.2]} 3... c6 {[%clk 0:04:50.2]} 4.
cxd5 {[%clk 0:04:52.8]} 4... exd5 {[%clk 0:04:49]} 5. a3 {[%clk 0:04:52.4]} 5...
Nf6 {[%clk 0:04:46.8]} 6. Bg5 {[%clk 0:04:50.7]} 6... Be7 {[%clk 0:04:46]} 7.
Nc3 {[%clk 0:04:50.1]} 7... O-O {[%clk 0:04:45.6]} 8. e3 {[%clk 0:04:49.5]} 8...
Bg4 {[%clk 0:04:44.5]} 9. Be2 {[%clk 0:04:48.8]} 9... Nbd7 {[%clk 0:04:43.7]}
10. h3 {[%clk 0:04:48]} 10... Bh5 {[%clk 0:04:41.5]} 11. O-O {[%clk 0:04:46.9]}
11... Rc8 {[%clk 0:04:38.5]} 12. Rc1 {[%clk 0:04:45.1]} 12... c5 {[%clk
0:04:37.7]} 13. Nb5 {[%clk 0:04:40.3]} 13... a6 {[%clk 0:04:35.6]} 14. Nc3
{[%clk 0:04:35]} 14... c4 {[%clk 0:04:34.6]} 15. Bxf6 {[%clk 0:04:31.8]} 15...
Nxf6 {[%clk 0:04:33]} 16. Ne5 {[%clk 0:04:29.4]} 16... Bxe2 {[%clk 0:04:30.9]}
17. Qxe2 {[%clk 0:04:28.9]} 17... b5 {[%clk 0:04:30.4]} 18. f3 {[%clk
0:04:22.7]} 18... Re8 {[%clk 0:04:28.3]} 19. Rc2 {[%clk 0:04:18.2]} 19... Bd6
{[%clk 0:04:27.1]} 20. f4 {[%clk 0:04:16.8]} 20... Qb6 {[%clk 0:04:21.7]} 21.
Rfc1 {[%clk 0:04:15.1]} 21... a5 {[%clk 0:04:20.7]} 22. g4 {[%clk 0:04:05.7]}
22... b4 {[%clk 0:04:19.5]} 23. g5 {[%clk 0:03:59.7]} 23... bxc3 {[%clk
0:04:05.8]} 24. gxf6 {[%clk 0:03:58.6]} 24... gxf6 {[%clk 0:04:04.9]} 25. Qg4+
{[%clk 0:03:55.3]} 25... Kf8 {[%clk 0:04:01.2]} 26. Nd7+ {[%clk 0:03:51.5]}
26... Ke7 {[%clk 0:03:58.7]} 27. Nxb6 {[%clk 0:03:50.6]} 27... cxb2 {[%clk
0:03:57.4]} 28. Qd7+ {[%clk 0:03:43.6]} 28... Kf8 {[%clk 0:03:55.5]} 29. Rxb2
{[%clk 0:03:39]} 29... Bxa3 {[%clk 0:03:52.7]} 30. Nxc8 {[%clk 0:03:32.7]} 30...
Bxb2 {[%clk 0:03:51.7]} 31. Qd6+ {[%clk 0:03:27.3]} 31... Kg7 {[%clk 0:03:49.6]}
32. Rb1 {[%clk 0:03:21.3]} 32... c3 {[%clk 0:03:45.6]} 33. Nb6 {[%clk
0:03:10.5]} 33... Rxe3 {[%clk 0:03:43.7]} 34. Qc6 {[%clk 0:02:51.4]} 34... Re6
{[%clk 0:03:33.9]} 35. Qc5 {[%clk 0:02:31.8]} 35... Re2 {[%clk 0:03:20.3]} 36.
Na4 {[%clk 0:02:22.3]} 36... c2 {[%clk 0:03:13.1]} 37. Rxb2 {[%clk 0:02:09.3]}
37... Re1+ {[%clk 0:03:11.2]} 38. Kf2 {[%clk 0:02:07.4]} 38... c1=Q {[%clk
0:03:09.3]} 39. Qxc1 {[%clk 0:02:06.4]} 39... Rxc1 {[%clk 0:03:08.3]} 40. Rb5
{[%clk 0:02:00.9]} 40... Rc4 {[%clk 0:03:05.2]} 41. Rxa5 {[%clk 0:01:58.5]}
41... Rxd4 {[%clk 0:03:04.3]} 42. Ke3 {[%clk 0:01:53.1]} 42... Re4+ {[%clk
0:03:03.1]} 43. Kf3 {[%clk 0:01:50.8]} 43... Rd4 {[%clk 0:03:02]} 44. Nc3 {[%clk
0:01:48.7]} 44... Rd3+ {[%clk 0:03:01]} 45. Ke2 {[%clk 0:01:43.6]} 45... Rxc3
{[%clk 0:02:59.8]} 46. Rxd5 {[%clk 0:01:43.1]} 46... Rxh3 {[%clk 0:02:58]} 47.
Kf2 {[%clk 0:01:41.3]} 47... Kg6 {[%clk 0:02:55.3]} 48. Kg2 {[%clk 0:01:38]}
48... Rh5 {[%clk 0:02:53.5]} 49. Kg3 {[%clk 0:01:36.8]} 49... Rxd5 {[%clk
0:02:52]} 0-1

[Event "Live Chess"]
[Site "Chess.com"]
[Date "2024.06.02"]
[Round "-"]
[White "BishopofWells"]
[Black "ProfPoisson"]
[Result "1-0"]
[WhiteElo "1553"]
[BlackElo "1314"]
[TimeControl "300"]
[EndTime "5:52:09 PDT"]
[Termination "BishopofWells won on time"]

1. d4 {[%clk 0:04:56.9]} 1... e6 {[%clk 0:04:56.5]} 2. c4 {[%clk 0:04:51.2]}
2... f5 {[%clk 0:04:54.7]} 3. Nc3 {[%clk 0:04:49.3]} 3... Bb4 {[%clk 0:04:41.7]}
4. Bd2 {[%clk 0:04:46.6]} 4... Nf6 {[%clk 0:04:37]} 5. a3 {[%clk 0:04:45.7]}
5... Bxc3 {[%clk 0:04:32]} 6. Bxc3 {[%clk 0:04:44.8]} 6... b6 {[%clk 0:04:28.9]}
7. e3 {[%clk 0:04:29]} 7... Ne4 {[%clk 0:04:26.2]} 8. Rc1 {[%clk 0:04:26.6]}
8... O-O {[%clk 0:04:20]} 9. Nf3 {[%clk 0:04:24.1]} 9... Bb7 {[%clk 0:04:05.5]}
10. d5 {[%clk 0:04:13.3]} 10... exd5 {[%clk 0:03:55.3]} 11. cxd5 {[%clk
0:04:07.6]} 11... d6 {[%clk 0:03:52.8]} 12. Qd4 {[%clk 0:04:05.9]} 12... Nxc3
{[%clk 0:03:46.1]} 13. Rxc3 {[%clk 0:04:04.9]} 13... Nd7 {[%clk 0:03:33.2]} 14.
Bc4 {[%clk 0:03:56.7]} 14... Qf6 {[%clk 0:03:30.7]} 15. Qxf6 {[%clk 0:03:42.4]}
15... Nxf6 {[%clk 0:03:29.2]} 16. Ba2 {[%clk 0:03:40]} 16... Ne4 {[%clk
0:03:27.7]} 17. Rxc7 {[%clk 0:03:36.3]} 17... Ba6 {[%clk 0:03:19.5]} 18. Nd4
{[%clk 0:03:26.6]} 18... g6 {[%clk 0:03:12.7]} 19. f3 {[%clk 0:03:16.9]} 19...
Nc5 {[%clk 0:03:07.7]} 20. Kf2 {[%clk 0:03:12.3]} 20... Nd3+ {[%clk 0:03:05.7]}
21. Kg3 {[%clk 0:03:11.2]} 21... Nxb2 {[%clk 0:02:59.6]} 22. Ne6 {[%clk
0:03:03.6]} 22... Rf7 {[%clk 0:02:50.5]} 23. Rxf7 {[%clk 0:02:57.2]} 23... Kxf7
{[%clk 0:02:48.2]} 24. Nc7 {[%clk 0:02:56]} 24... Bc4 {[%clk 0:02:18.1]} 25.
Nxa8 {[%clk 0:02:37.7]} 25... Bxa2 {[%clk 0:02:15.1]} 26. Nc7 {[%clk 0:02:33.6]}
26... Nd3 {[%clk 0:02:01.6]} 27. Rd1 {[%clk 0:02:32.1]} 27... Ne5 {[%clk
0:01:55]} 28. Nb5 {[%clk 0:02:25.5]} 28... Bc4 {[%clk 0:01:37.4]} 29. Nxd6+
{[%clk 0:02:22.8]} 29... Ke7 {[%clk 0:01:34.1]} 30. Nxc4 {[%clk 0:02:20.7]}
30... Nxc4 {[%clk 0:01:32.5]} 31. Rd3 {[%clk 0:02:15]} 31... Kd6 {[%clk
0:01:30.4]} 32. e4 {[%clk 0:02:10.7]} 32... fxe4 {[%clk 0:01:26.1]} 33. fxe4
{[%clk 0:02:09]} 33... Ne5 {[%clk 0:01:24.5]} 34. Rc3 {[%clk 0:02:04.9]} 34...
h5 {[%clk 0:01:16]} 35. Kf4 {[%clk 0:02:02.9]} 35... h4 {[%clk 0:00:51.3]} 36.
Kg5 {[%clk 0:01:51.4]} 36... b5 {[%clk 0:00:34]} 37. Kxh4 {[%clk 0:01:44.9]}
37... Nc4 {[%clk 0:00:31.3]} 38. Kg5 {[%clk 0:01:40.1]} 38... Ke5 {[%clk
0:00:29.5]} 39. Kxg6 {[%clk 0:01:25.2]} 39... Kxe4 {[%clk 0:00:28.3]} 40. h4
{[%clk 0:01:22.1]} 40... Kxd5 {[%clk 0:00:22.5]} 41. h5 {[%clk 0:01:16.9]} 41...
Ne5+ {[%clk 0:00:20.8]} 42. Kg7 {[%clk 0:01:15.9]} 42... Ke6 {[%clk 0:00:17.2]}
43. h6 {[%clk 0:01:14.7]} 43... Nf7 {[%clk 0:00:15]} 44. h7 {[%clk 0:01:13.2]}
44... a5 {[%clk 0:00:11.1]} 45. Re3+ {[%clk 0:01:10.4]} 45... Kd5 {[%clk
0:00:07.7]} 46. Kxf7 {[%clk 0:01:09.4]} 1-0

[Event "Live Chess"]
[Site "Chess.com"]
[Date "2024.06.02"]
[Round "-"]
[White "megabusyman"]
[Black "GMMickeyAdams"]
[Result "0-1"]
[WhiteElo "1867"]
[BlackElo "2800"]
[TimeControl "300"]
[EndTime "5:52:41 PDT"]
[Termination "GMMickeyAdams won by resignation"]

1. e4 {[%clk 0:04:53.9]} 1... e6 {[%clk 0:04:57.5]} 2. Nc3 {[%clk 0:04:51.5]}
2... d5 {[%clk 0:04:57.3]} 3. exd5 {[%clk 0:04:49.4]} 3... exd5 {[%clk
0:04:55.8]} 4. d4 {[%clk 0:04:48.4]} 4... Nf6 {[%clk 0:04:53.7]} 5. Nf3 {[%clk
0:04:46.5]} 5... Bg4 {[%clk 0:04:51]} 6. Be3 {[%clk 0:04:42.1]} 6... Be7 {[%clk
0:04:49.2]} 7. h3 {[%clk 0:04:39.6]} 7... Bh5 {[%clk 0:04:46.7]} 8. Be2 {[%clk
0:04:29.4]} 8... c6 {[%clk 0:04:43.7]} 9. Ne5 {[%clk 0:04:26]} 9... Bxe2 {[%clk
0:04:37.5]} 10. Qxe2 {[%clk 0:04:25.9]} 10... O-O {[%clk 0:04:36.2]} 11. O-O
{[%clk 0:04:08.1]} 11... Nbd7 {[%clk 0:04:32.5]} 12. f4 {[%clk 0:03:25.7]} 12...
Bb4 {[%clk 0:04:28.8]} 13. Rad1 {[%clk 0:03:23.6]} 13... Bxc3 {[%clk 0:04:27.6]}
14. bxc3 {[%clk 0:03:22.6]} 14... Ne4 {[%clk 0:04:27.3]} 15. Qe1 {[%clk
0:02:28.9]} 15... f6 {[%clk 0:04:25.6]} 16. Nd3 {[%clk 0:02:20]} 16... Nb6
{[%clk 0:04:23.8]} 17. Kh2 {[%clk 0:02:03]} 17... Re8 {[%clk 0:04:21.2]} 18. Nf2
{[%clk 0:01:49.6]} 18... Nc4 {[%clk 0:04:18.2]} 19. Nxe4 {[%clk 0:01:42.9]}
19... Rxe4 {[%clk 0:04:16.6]} 20. Rd3 {[%clk 0:01:42.4]} 20... Qe7 {[%clk
0:04:16.1]} 21. Rf3 {[%clk 0:01:33.1]} 21... Re8 {[%clk 0:04:14.8]} 0-1

[Event "Live Chess"]
[Site "Chess.com"]
[Date "2024.06.02"]
[Round "-"]
[White "gmnorfolk"]
[Black "FlyingChessKestrel13"]
[Result "1-0"]
[WhiteElo "2141"]
[BlackElo "2084"]
[TimeControl "300"]
[EndTime "5:52:47 PDT"]
[Termination "gmnorfolk won by checkmate"]

1. c4 {[%clk 0:04:57.1]} 1... Nf6 {[%clk 0:04:56.6]} 2. Nc3 {[%clk 0:04:54.6]}
2... e6 {[%clk 0:04:55.8]} 3. e4 {[%clk 0:04:51.7]} 3... d6 {[%clk 0:04:54.4]}
4. d4 {[%clk 0:04:49.4]} 4... b6 {[%clk 0:04:52.7]} 5. f4 {[%clk 0:04:48.5]}
5... Bb7 {[%clk 0:04:50.3]} 6. Bd3 {[%clk 0:04:46.7]} 6... Nbd7 {[%clk
0:04:48.7]} 7. Nf3 {[%clk 0:04:44.5]} 7... Be7 {[%clk 0:04:44.9]} 8. e5 {[%clk
0:04:43.1]} 8... dxe5 {[%clk 0:04:42.2]} 9. fxe5 {[%clk 0:04:41.4]} 9... Ng8
{[%clk 0:04:40.7]} 10. O-O {[%clk 0:04:40]} 10... c6 {[%clk 0:04:28.2]} 11. Ne4
{[%clk 0:04:36.7]} 11... Qc7 {[%clk 0:04:26.7]} 12. Bg5 {[%clk 0:04:33.7]} 12...
Bxg5 {[%clk 0:04:23.5]} 13. Nd6+ {[%clk 0:04:31.4]} 13... Ke7 {[%clk 0:04:14.6]}
14. Nxg5 {[%clk 0:04:26.5]} 14... Nh6 {[%clk 0:04:11.8]} 15. Ngxf7 {[%clk
0:04:24.6]} 15... Rhf8 {[%clk 0:04:10.3]} 16. Qh5 {[%clk 0:04:11.5]} 16... c5
{[%clk 0:03:49.6]} 17. Qg5+ {[%clk 0:04:08.6]} 17... Nf6 {[%clk 0:03:46.9]} 18.
exf6+ {[%clk 0:04:07]} 18... gxf6 {[%clk 0:03:46]} 19. Qxf6+ {[%clk 0:03:59.4]}
19... Kd7 {[%clk 0:03:41.3]} 20. Qxh6 {[%clk 0:03:55.8]} 20... Qc6 {[%clk
0:03:38.7]} 21. d5 {[%clk 0:03:53.3]} 21... Qc7 {[%clk 0:03:34.2]} 22. Qxe6#
{[%clk 0:03:48.9]} 1-0

[Event "Live Chess"]
[Site "Chess.com"]
[Date "2024.06.02"]
[Round "-"]
[White "Queensandpawns"]
[Black "Ferrarifan27"]
[Result "1-0"]
[WhiteElo "2284"]
[BlackElo "2145"]
[TimeControl "300"]
[EndTime "5:52:55 PDT"]
[Termination "Queensandpawns won - game abandoned"]

1. d4 {[%clk 0:04:58.6]} 1... Nf6 {[%clk 0:04:57.1]} 2. Nc3 {[%clk 0:04:58.5]}
2... e6 {[%clk 0:04:55.6]} 3. Bf4 {[%clk 0:04:58]} 3... d5 {[%clk 0:04:53.9]} 4.
e3 {[%clk 0:04:57.4]} 4... Bb4 {[%clk 0:04:51.7]} 5. Ne2 {[%clk 0:04:56]} 5...
O-O {[%clk 0:04:48]} 6. a3 {[%clk 0:04:55.2]} 6... Ba5 {[%clk 0:04:45.8]} 7. b4
{[%clk 0:04:53.5]} 7... Bb6 {[%clk 0:04:44.8]} 8. Ng3 {[%clk 0:04:52.9]} 8... c6
{[%clk 0:04:43.1]} 9. Bd3 {[%clk 0:04:51.1]} 9... Bc7 {[%clk 0:04:42]} 10. Nce2
{[%clk 0:04:49.3]} 10... Bxf4 {[%clk 0:04:40.8]} 11. Nxf4 {[%clk 0:04:49.2]}
11... Nbd7 {[%clk 0:04:38.1]} 12. O-O {[%clk 0:04:46.5]} 12... e5 {[%clk
0:04:36.4]} 13. dxe5 {[%clk 0:04:46.4]} 13... Nxe5 {[%clk 0:04:35]} 14. Be2
{[%clk 0:04:46.3]} 14... Bg4 {[%clk 0:04:32.1]} 15. Nd3 {[%clk 0:04:43]} 15...
Bxe2 {[%clk 0:04:28]} 16. Qxe2 {[%clk 0:04:42.9]} 16... Nc4 {[%clk 0:04:26.9]}
17. Nc5 {[%clk 0:04:33.9]} 17... b6 {[%clk 0:04:23.2]} 18. Nb3 {[%clk
0:04:29.1]} 18... Re8 {[%clk 0:04:03.7]} 19. Nd4 {[%clk 0:04:25.8]} 19... Qd7
{[%clk 0:03:57.6]} 20. Rad1 {[%clk 0:04:22.9]} 20... Rad8 {[%clk 0:03:54.3]} 21.
Qd3 {[%clk 0:04:20.4]} 21... Ne4 {[%clk 0:03:47.5]} 22. Nxe4 {[%clk 0:04:17.6]}
22... Rxe4 {[%clk 0:03:45.9]} 23. Nxc6 {[%clk 0:04:14.8]} 23... Qxc6 {[%clk
0:03:30.4]} 24. Qxe4 {[%clk 0:04:12.9]} 1-0

[Event "Live Chess"]
[Site "Chess.com"]
[Date "2024.06.02"]
[Round "-"]
[White "Colm_Buckley"]
[Black "TheSmoulderingMaster"]
[Result "1-0"]
[WhiteElo "1881"]
[BlackElo "1765"]
[TimeControl "300"]
[EndTime "5:52:57 PDT"]
[Termination "Colm_Buckley won by resignation"]

1. d4 {[%clk 0:04:57.7]} 1... Nf6 {[%clk 0:04:57.4]} 2. c4 {[%clk 0:04:56.8]}
2... d6 {[%clk 0:04:56.9]} 3. Nc3 {[%clk 0:04:54.9]} 3... g6 {[%clk 0:04:56.2]}
4. e4 {[%clk 0:04:52.7]} 4... Bg7 {[%clk 0:04:55.4]} 5. Be2 {[%clk 0:04:51.8]}
5... O-O {[%clk 0:04:54.6]} 6. Nf3 {[%clk 0:04:50.9]} 6... Nbd7 {[%clk
0:04:52.8]} 7. O-O {[%clk 0:04:50]} 7... e5 {[%clk 0:04:52]} 8. dxe5 {[%clk
0:04:48.8]} 8... dxe5 {[%clk 0:04:50.8]} 9. Qc2 {[%clk 0:04:43.1]} 9... Qe7
{[%clk 0:04:49.7]} 10. a3 {[%clk 0:04:38.5]} 10... Nc5 {[%clk 0:04:47.4]} 11.
Be3 {[%clk 0:04:21.3]} 11... Bg4 {[%clk 0:04:43.8]} 12. Nd5 {[%clk 0:03:59.4]}
12... Nxd5 {[%clk 0:04:41.1]} 13. cxd5 {[%clk 0:03:56.3]} 13... b6 {[%clk
0:04:39]} 14. Bxc5 {[%clk 0:03:50.3]} 14... bxc5 {[%clk 0:04:37.6]} 15. h3
{[%clk 0:03:44.5]} 15... Bxf3 {[%clk 0:04:34]} 16. Bxf3 {[%clk 0:03:43.5]} 16...
f5 {[%clk 0:04:33.9]} 17. Rac1 {[%clk 0:03:31.8]} 17... fxe4 {[%clk 0:04:31.6]}
18. Bxe4 {[%clk 0:03:29.4]} 18... Rf4 {[%clk 0:04:29.8]} 19. Rfe1 {[%clk
0:03:21.3]} 19... Bf8 {[%clk 0:04:27.2]} 20. g3 {[%clk 0:03:07.1]} 20... Rf6
{[%clk 0:04:19.8]} 21. Qc4 {[%clk 0:02:57.9]} 21... Rd6 {[%clk 0:04:15.7]} 22.
Qxc5 {[%clk 0:02:48.1]} 22... Rc8 {[%clk 0:04:12.7]} 23. Qxa7 {[%clk 0:02:41.5]}
23... Qd7 {[%clk 0:04:07.4]} 24. Rc2 {[%clk 0:02:29.3]} 24... Qxh3 {[%clk
0:04:02.6]} 25. Rxc7 {[%clk 0:02:25]} 25... Rxc7 {[%clk 0:03:59.1]} 26. Qxc7
{[%clk 0:02:22.6]} 26... Rf6 {[%clk 0:03:56.7]} 27. Qc4 {[%clk 0:02:09.5]} 27...
Bd6 {[%clk 0:03:47.4]} 28. a4 {[%clk 0:01:58.7]} 28... h5 {[%clk 0:03:45.1]} 29.
Rc1 {[%clk 0:01:53.4]} 29... h4 {[%clk 0:03:43.2]} 30. Qc8+ {[%clk 0:01:51.8]}
30... Kh7 {[%clk 0:03:41.6]} 31. Qxh3 {[%clk 0:01:50.4]} 1-0

[Event "Live Chess"]
[Site "Chess.com"]
[Date "2024.06.02"]
[Round "-"]
[White "upoe610"]
[Black "NAZRIZ1977"]
[Result "1-0"]
[WhiteElo "2128"]
[BlackElo "2103"]
[TimeControl "300"]
[EndTime "5:52:59 PDT"]
[Termination "upoe610 won by resignation"]

1. c4 {[%clk 0:04:55.2]} 1... g6 {[%clk 0:04:58.5]} 2. g3 {[%clk 0:04:54]} 2...
Bg7 {[%clk 0:04:57.1]} 3. Bg2 {[%clk 0:04:51.7]} 3... Nf6 {[%clk 0:04:56.6]} 4.
Nc3 {[%clk 0:04:50.8]} 4... O-O {[%clk 0:04:56.1]} 5. d4 {[%clk 0:04:50.2]} 5...
d6 {[%clk 0:04:54.5]} 6. h3 {[%clk 0:04:47.8]} 6... c6 {[%clk 0:04:53.5]} 7. Nf3
{[%clk 0:04:46.5]} 7... Qa5 {[%clk 0:04:52.9]} 8. O-O {[%clk 0:04:45.2]} 8...
Qa6 {[%clk 0:04:49.7]} 9. b3 {[%clk 0:04:43.3]} 9... c5 {[%clk 0:04:45.9]} 10.
d5 {[%clk 0:04:40.3]} 10... Ne4 {[%clk 0:04:42.4]} 11. Nxe4 {[%clk 0:04:38.5]}
11... Bxa1 {[%clk 0:04:41.8]} 12. Bg5 {[%clk 0:04:35]} 12... Bf6 {[%clk
0:04:27.8]} 13. Bxf6 {[%clk 0:04:25.2]} 13... exf6 {[%clk 0:04:25.9]} 14. Nxf6+
{[%clk 0:04:25.1]} 14... Kg7 {[%clk 0:04:25.2]} 15. Qa1 {[%clk 0:04:25]} 1-0